Cogmind - Beta 15 @@@ ROGUE MODE // 2025.07.01 @ 21:57:21 Player: BlobtheGreat Result: Destroyed by S-27 Virus with Autogun Performance ------------- Evolutions (5) 2500 Regions Visited (10) 2000 Robots Destroyed (71) 355 Value Destroyed (1879) 1879 Prototype IDs (18) 360 Alien Tech Used (2) 400 Bonus (998) 998 TOTAL SCORE: 8492 Bonus ------- Follower Combat Kills 216 Registered with UFD 300 Met Optimus in HQ 500 Friendly Fire -18 Cogmind --------- Core Integrity 0/1000 Matter 281/300 Energy 334/340 System Corruption 5% Temperature Cool (0) Movement Walking (120) Location -4/Proximity Caves Parts ------- > --- POWER (1) -------- Heavy Antimatter Reactor > --- PROPULSION (5) --- Advanced Myomer Leg Advanced Myomer Leg Advanced Myomer Leg > --- UTILITY (9) ------ Enhanced Optical Array Improved Signal Interpreter Experimental Core Shielding Makeshift System Shield > --- WEAPON (2) ------- Axe (fused) > --- INVENTORY (5) ---- Subdweller Power Source Micro Fission Core Subdweller Optics Relay Coupler [Proto] (4) Peak State ------------ > --- POWER ------------ Heavy Antimatter Reactor > --- PROPULSION ------- Advanced Myomer Leg Advanced Myomer Leg Advanced Myomer Leg > --- UTILITY ---------- Advanced Cooling System Enhanced Optical Array Improved Signal Interpreter Experimental Core Shielding Hacking Suite Makeshift System Shield > --- WEAPON ----------- Subdweller Machine Gun Axe > --- INVENTORY -------- Subdweller Power Source Micro Fission Core Subdweller Optics Relay Coupler [Proto] Transdimensional Reconstructor [Rating: 70] Favorites ----------- Power Light Nuclear Core Engine Ion Engine Power Core Light Nuclear Core Reactor Heavy Antimatter Reactor Propulsion Light Treads Treads Light Treads Leg Advanced Myomer Leg Wheel Subdweller Monowheel Hover Unit Linear Gravjet Flight Unit Cooled Nuclear Pulse Thruster Utility Huge Storage Unit Device Structural Scanner Storage Huge Storage Unit Processor Enhanced Optical Array Hackware Makeshift System Shield Protection Layered Light Armor Plating Weapon Light Assault Rifle Energy Gun Beamcaster Ballistic Gun Light Assault Rifle Launcher Grenade Launcher Special Weapon Enhanced Flamer Slashing Weapon Axe Build | -11 -10 -10 -10 -7 -7 -5 -5 -5 -5 -4 ------- Run | Yrd Mat Min Sub Rec Scr Fac Upp Upp Zhi Pro Slots Evolved 10 | . . . . . . 10 . . . . Power . | . . . . . . . . . . . Propulsion 3 | . . . . . . 3 . . . . Utility 7 | . . . . . . 7 . . . . Weapon . | . . . . . . . . . . . Parts Attached 60 | 7 7 4 3 4 3 24 . . 8 . Power 8 | 1 . 1 1 1 . 3 . . 1 . Engine 4 | 1 . 1 1 . . 1 . . . . Core 3 | . . . . 1 . 2 . . . . Reactor 1 | . . . . . . . . . 1 . Propulsion 15 | 2 2 1 1 . 1 5 . . 3 . Treads 8 | 2 2 1 1 . 1 1 . . . . Leg 3 | . . . . . . . . . 3 . Wheel 1 | . . . . . . 1 . . . . Hover 2 | . . . . . . 2 . . . . Flight 1 | . . . . . . 1 . . . . Utility 17 | 2 2 . . 2 . 8 . . 3 . Device 6 | 1 . . . 1 . 3 . . 1 . Storage 4 | 1 2 . . . . . . . 1 . Processor 2 | . . . . . . 2 . . . . Hackware 2 | . . . . . . 2 . . . . Protection 3 | . . . . 1 . 1 . . 1 . Artifact . | . . . . . . . . . . . Weapon 20 | 2 3 2 1 1 2 8 . . 1 . Energy Gun 2 | . 1 . . . 1 . . . . . Energy Cannon . | . . . . . . . . . . . Ballistic Gun 9 | 2 1 2 . 1 1 1 . . 1 . Ballistic Cannon . | . . . . . . . . . . . Launcher 3 | . 1 . 1 . . 1 . . . . Special Weapon 4 | . . . . . . 4 . . . . Impact Weapon . | . . . . . . . . . . . Slashing Weapon 2 | . . . . . . 2 . . . . Piercing Weapon . | . . . . . . . . . . . Special Melee Weapon . | . . . . . . . . . . . Unidentified Prototypes 6 | . . . . . . 1 . . 4 1 Parts Lost 35 | . 2 5 1 1 . 23 . . . 3 Power 4 | . . 1 . 1 . 2 . . . . Propulsion 10 | . . 2 1 . . 7 . . . . Utility 8 | . . . . . . 6 . . . 2 Weapon 13 | . 2 2 . . . 8 . . . 1 Highest Loss Streak 6 | . 2 3 1 1 . 6 . . . 3 To Critical Strikes . | . . . . . . . . . . . Average Backups 19 | 3 10 14 22 24 23 16 5 5 4 4 Power 1 | . 1 1 2 2 1 2 2 2 2 2 Propulsion 2 | 2 3 2 2 3 2 2 . . . . Utility 6 | . 2 3 6 6 9 2 2 2 2 2 Weapon 8 | . 3 7 10 13 9 8 1 1 . . Tool/Special . | . . . . . . . . . . . Unused Backups 12 | . 4 . 1 . 3 2 . . . 2 Power . | . . . . . . . . . . . Propulsion 4 | . 4 . . . . . . . . . Utility 3 | . . . 1 . . . . . . 2 Weapon 5 | . . . . . 3 2 . . . . Tool/Special . | . . . . . . . . . . . Average Slot Usage (%) 93 | . 99 93 100 99 97 73 29 29 55 66 Engine 4 | . 14 8 14 6 . . . . . . Core 7 | . . . . 7 13 4 . . . . Treads 24 | . 28 27 28 28 27 12 . . . . Device 12 | . 14 14 14 9 13 7 . . 2 3 Storage 12 | . 14 14 14 14 13 4 . . . . Processor 1 | . . . . . . 7 11 11 11 11 Hackware 1 | . . . . . . 10 11 11 11 9 Protection 1 | . . . . 4 . 6 . . 3 5 Energy Gun 1 | . . . . . 3 1 . . . . Ballistic Gun 16 | . 27 26 27 19 13 3 . . 3 4 Launcher 5 | . . 1 . 8 9 . . . . . Peak Build Rating 70 | 7 8 9 12 18 20 49 20 20 70 70 Average Rating 17 | 5 7 8 11 14 16 41 20 20 53 66 On Entrance 18 | . 7 8 9 12 15 20 20 20 20 70 Naked Turns 78 | . . . . . 78 . . . . . Heaviest Build 108 | 14 90 90 90 92 93 108 3 3 28 28 Greatest Support 90 | 40 40 40 40 40 40 80 3 3 90 90 Greatest Overweight (x) 10 | . 2 4 4 2 2 10 . . . . Average Overweight (x) 1 | . 1 2 2 2 1 2 . . . . Largest Inventory Capacity 25 | 8 25 25 25 25 25 25 5 5 5 5 Average Capacity 22 | 7 20 25 25 25 24 24 5 5 5 5 Most Carried 25 | 7 15 17 25 25 25 24 5 5 5 5 Average Carried 19 | 4 10 14 23 24 23 16 5 5 4 4 Final Capacity 25 | 8 25 25 25 25 25 5 5 5 5 5 Final Carried 25 | 7 15 14 25 25 25 5 5 5 5 4 Class Distribution -------------------- 85% | Mutant 10% | Hacker-Mutant 3% | Scavenger-Mutant Dominant Class ---------------- Mutant | -10/Materials Mutant | -10/Mines Mutant | -10/Subcaves Mutant | -7/Recycling Mutant | -7/Scraptown Hacker-Mutant | -5/Factory Hacker-Mutant | -5/Upper Caves Hacker-Mutant | -5/Upper Caves Hacker-Mutant | -5/Zhirov Hacker-Mutant | -4/Proximity Caves Resources | -11 -10 -10 -10 -7 -7 -5 -5 -5 -5 -4 ----------- Run | Yrd Mat Min Sub Rec Scr Fac Upp Upp Zhi Pro Matter Collected 1771 | 297 380 228 128 . 95 352 183 . 108 . Remotely . | . . . . . . . . . . . Salvage Created 2193 | 118 680 402 53 66 . 485 . . 338 51 Parts 119 | 8 55 25 5 3 . 17 . . 2 4 Haulers Intercepted 2 | . 2 . . . . . . . . . Recyclers Shooed 1 | . 1 . . . . . . . . . Parts Field Recycled . | . . . . . . . . . . . Retrieved Matter . | . . . . . . . . . . . Parts Self-Destructed 8 | . . . 7 . . . . . 1 . Prevented 3 | . . . . . . . 3 . . . Kills | -11 -10 -10 -10 -7 -7 -5 -5 -5 -5 -4 ------- Run | Yrd Mat Min Sub Rec Scr Fac Upp Upp Zhi Pro Combat Hostiles Destroyed 53 | . 19 16 2 1 . 13 . . . 2 Melee 3 | . . . . . . 1 . . . 2 Guns 35 | . 18 10 2 1 . 4 . . . . Cannons 2 | . . . . . . 2 . . . . AOE 9 | . 1 6 . . . 2 . . . . Classes Destroyed 16 | 2 7 1 2 1 . 3 . . . . Worker 3 | . 2 . . . . 1 . . . . Builder 2 | . . . . . . 2 . . . . Tunneler 5 | 2 . 2 . . . 1 . . . . Hauler 2 | . 2 . . . . . . . . . Recycler 2 | 1 . 1 . . . . . . . . Mechanic 1 | . 1 . . . . . . . . . Operator 2 | . 2 . . . . . . . . . Turret 2 | . . . 2 . . . . . . . Watcher 2 | . 1 . . . . 1 . . . . Swarmer 21 | . 12 4 1 . . 2 . . . 2 Grunt 20 | . 7 9 . . . 4 . . . . Sentry 3 | . . . . 1 . 2 . . . . Hunter 1 | . . . . . . 1 . . . . Programmer 4 | . . . . . . 4 . . . . Subdweller 1 | . . . 1 . . . . . . . Assembled 3 | . . 3 . . . . . . . . Best Kill Streak 6 | 3 4 3 3 1 . 6 . . . 2 Combat Bots Only 4 | . 4 3 1 1 . 2 . . . 2 Max Kills in Single Turn 5 | 1 1 3 1 1 . 5 . . . 1 Gunslinging . | . . . . . . . . . . . Exploded 1 | . 1 1 . . . 1 . . . . Melee 1 | . . . . . . 1 . . . 1 Uniques/NPCs Destroyed . | . . . . . . . . . . . Combat | -11 -10 -10 -10 -7 -7 -5 -5 -5 -5 -4 -------- Run | Yrd Mat Min Sub Rec Scr Fac Upp Upp Zhi Pro Hostile Shots Fired 520 | . 106 53 64 63 . 136 22 1 . 75 Missed 168 | . 32 10 35 27 . 32 8 1 . 23 Hits 352 | . 74 43 29 36 . 104 14 . . 52 Projectile 352 | . 74 43 29 36 . 104 14 . . 52 Critical Strikes 8 | . . 2 . . . 5 . . . 1 Damage Taken 5170 | . 706 516 275 265 . 2405 164 . . 839 Core 1228 | . 94 52 67 18 . 653 164 . . 180 Absorbed by Shields . | . . . . . . . . . . . Redirected to Shielding 108 | . . . . . . . . . . 108 Core Remaining (%) 53 | 100 . . . . 7 . . . . . Volleys Fired 217 | 7 88 45 20 11 . 46 . . . . Largest 2 | 2 2 2 2 2 . 2 . . . . Hottest 180 | 40 60 40 40 45 . 180 . . . . Shots Fired 397 | 13 170 74 36 19 . 85 . . . . Gun 331 | 13 166 58 32 16 . 46 . . . . Cannon . | . . . . . . . . . . . Launcher 33 | . 4 16 4 3 . 6 . . . . Special 33 | . . . . . . 33 . . . . Kinetic 306 | 13 159 58 32 16 . 28 . . . . Thermal 51 | . . . . . . 51 . . . . Explosive 33 | . 4 16 4 3 . 6 . . . . Electromagnetic 7 | . 7 . . . . . . . . . Robot Hit Streak 24 | 5 9 13 10 8 . 24 . . . . Robot Miss Streak 3 | 1 3 2 2 1 . 2 . . . . Penetration Max 1 | . . . . . . 1 . . . . Secondary Targets 3 | . 1 1 1 . . . . . . . Max Gunslinging Chain 1 | . 1 1 1 . . . . . . . Shots Hit Robots 282 | 9 96 53 22 14 . 73 . . 8 7 Core Hits 141 | 4 46 29 16 5 . 32 . . 6 3 Critical Kills 1 | . . 1 . . . . . . . . Critical Parts Destroyed 2 | . . . . . . 2 . . . . Critical Strikes 6 | . . 1 . . . 5 . . . . Burn 2 | . . . . . . 2 . . . . Destroy 3 | . . 1 . . . 2 . . . . Sever 1 | . . . . . . 1 . . . . Melee Attacks 31 | . . . . . . 9 2 . 8 12 Impact . | . . . . . . . . . . . Slashing 31 | . . . . . . 9 2 . 8 12 Piercing . | . . . . . . . . . . . Sneak Attacks 1 | . . . . . . . . . . 1 Combat Hostiles 1 | . . . . . . . . . . 1 Follow-up Attacks . | . . . . . . . . . . . Damage Inflicted 5549 | 98 1055 1011 232 150 . 2154 . . 561 288 Guns 2448 | 98 969 363 173 150 . 695 . . . . Cannons . | . . . . . . . . . . . Explosions 1664 | . 66 626 59 . . 913 . . . . Melee 1085 | . . . . . . 236 . . 561 288 Ramming 53 | . 20 22 . . . 11 . . . . Kinetic 2074 | 98 908 363 173 150 . 382 . . . . Thermal 1227 | . . . . . . 1227 . . . . Explosive 1049 | . 66 626 59 . . 298 . . . . Electromagnetic 61 | . 61 . . . . . . . . . Impact . | . . . . . . . . . . . Slashing 1085 | . . . . . . 236 . . 561 288 Piercing . | . . . . . . . . . . . Highest Corruption 5 | . . . . . . 5 5 5 5 5 Average Corruption 4 | . . . . . . 3 5 5 5 5 Corruption Purged . | . . . . . . . . . . . Corruption Blocked . | . . . . . . . . . . . Effects 27 | . . . . . . 12 4 1 9 1 Message Errors 7 | . . . . . . 2 3 . 2 . Matter Fused 7 | . . . . . . 3 . 1 3 . Heat Flow Errors 4 | . . . . . . 2 . . 1 1 Energy Discharges 1 | . . . . . . . . . 1 . Parts Fused 2 | . . . . . . 1 1 . . . Data Loss (minor) 2 | . . . . . . 1 . . 1 . Data Loss (major) 2 | . . . . . . 1 . . 1 . Misfires 1 | . . . . . . 1 . . . . Weapon Failures 1 | . . . . . . 1 . . . . Overload Shots . | . . . . . . . . . . . Overflow Damage 406 | . . 40 . . . 262 . . 73 31 Projectiles . | . . . . . . . . . . . Explosions 302 | . . 40 . . . 262 . . . . Melee 104 | . . . . . . . . . 73 31 Knockbacks 1 | . . 1 . . . . . . . . Impact 1 | . . 1 . . . . . . . . Kinetic . | . . . . . . . . . . . Secondary . | . . . . . . . . . . . Self-Inflicted Damage 390 | . 20 22 24 . . 324 . . . . Shots 11 | . 1 2 1 . . 7 . . . . Rammed 6 | . 3 1 . . . 2 . . . . Targets Rammed 8 | . 4 2 . . . 2 . . . . Kicked . | . . . . . . . . . . . Crushed 2 | . 1 1 . . . . . . . . Highest Temperature 241 | . 94 39 . 15 . 241 . . 227 74 Average Temperature 54 | . 39 15 . 7 . 69 . . 127 44 Received Heat Transfer 1044 | . 168 258 150 60 . 387 21 . . . Effects 2 | . . . . . . 2 . . . . Energy Bleed 2 | . . . . . . 2 . . . . Siege Activations . | . . . . . . . . . . . Martial Activations . | . . . . . . . . . . . Shielding Activations . | . . . . . . . . . . . Robots Disrupted 1 | . . . . . . 1 . . . . Combat Hostiles 1 | . . . . . . 1 . . . . Robots Corrupted . | . . . . . . . . . . . Combat Hostiles . | . . . . . . . . . . . Parts Fried . | . . . . . . . . . . . Impact Corruptions . | . . . . . . . . . . . Robots Melted 4 | . . . . . . 4 . . . . Combat Hostiles 4 | . . . . . . 4 . . . . Parts Melted 14 | . . 1 . . . 13 . . . . Heat Transferred 3355 | . . . . . . 3355 . . . . Parts Sabotaged . | . . . . . . . . . . . Parts Stolen . | . . . . . . . . . . . Parts Stripped . | . . . . . . . . . . . Power Chain Reactions . | . . . . . . . . . . . Alert | -11 -10 -10 -10 -7 -7 -5 -5 -5 -5 -4 ------- Run | Yrd Mat Min Sub Rec Scr Fac Upp Upp Zhi Pro Maximum Alert Level 1 | . . . . . . 1 . . . . Low Security (%) 99 | 100 100 100 . 100 . 95 . . . . Level 1 . | . . . . . . 4 . . . . Level 2 . | . . . . . . . . . . . Level 3 . | . . . . . . . . . . . Level 4 . | . . . . . . . . . . . Level 5 . | . . . . . . . . . . . High Security . | . . . . . . . . . . . Max Security . | . . . . . . . . . . . Peak Influence 223 | 5 140 157 . 32 . 223 . . . . Initial 32 | . . 16 . 32 . . . . . . Average 43 | . 59 80 . 1 . 31 . . . . Influence Increases 2043 | 15 617 561 142 75 . 553 30 . 10 40 Destroy 0b10 Robot/C 1180 | . 380 400 80 20 . 260 . . . 40 Destroy 0b10 Robot/NC 105 | 15 40 15 . . . 25 . . 10 . Destroy Leader 218 | . 76 60 . . . 82 . . . . Allied During Kill 13 | . . 11 2 . . . . . . . Successful Hack 67 | . 23 . . 44 . . . . . . Disable Machine 60 | . . . . . . 60 . . . . Destroy Structure 220 | . 23 60 . 11 . 126 . . . . Lose Combat Pursuer 180 | . 75 15 60 . . . 30 . . . Influence Decreases 2013 | 15 573 556 123 143 . 338 190 51 14 10 Entered New Map 185 | . . 28 26 36 . . 80 11 4 . Time Decay 1566 | 15 511 482 47 107 . 244 110 40 10 . Lost Part 170 | . 10 46 10 . . 94 . . . 10 Lost Ally 40 | . . . 40 . . . . . . . Purge Threat 52 | . 52 . . . . . . . . . Squads Dispatched 11 | . 3 . . . . 8 . . . . Investigation 2 | . 1 . . . . 1 . . . . Extermination 2 | . . . . . . 2 . . . . Reinforcement 4 | . 2 . . . . 2 . . . . Assault . | . . . . . . . . . . . Garrison 3 | . . . . . . 3 . . . . Intercept . | . . . . . . . . . . . Searches Triggered . | . . . . . . . . . . . Construction Impeded . | . . . . . . . . . . . Haulers Reinforced . | . . . . . . . . . . . Active Scanning Responses . | . . . . . . . . . . . Cargo Convoy Interrupts . | . . . . . . . . . . . Stealth | -11 -10 -10 -10 -7 -7 -5 -5 -5 -5 -4 --------- Run | Yrd Mat Min Sub Rec Scr Fac Upp Upp Zhi Pro Distress Signals 5 | . 4 . . . . 1 . . . . Communications Jammed . | . . . . . . . . . . . Distress Signals . | . . . . . . . . . . . Times Spotted 102 | . 38 21 11 1 . 19 5 1 . 6 Peak Tracking Total 5 | . 5 3 4 1 . 3 2 1 . 4 Tactical Retreats 8 | . 4 1 2 . . . 1 . . . Traps | -11 -10 -10 -10 -7 -7 -5 -5 -5 -5 -4 ------- Run | Yrd Mat Min Sub Rec Scr Fac Upp Upp Zhi Pro Traps Triggered . | . . . . . . . . . . . Indirectly . | . . . . . . . . . . . Trap Hack Attempts . | . . . . . . . . . . . Triggered . | . . . . . . . . . . . Disarmed . | . . . . . . . . . . . Reprogrammed . | . . . . . . . . . . . Reused . | . . . . . . . . . . . Traps Extracted . | . . . . . . . . . . . Installed . | . . . . . . . . . . . Triggered . | . . . . . . . . . . . Machines | -11 -10 -10 -10 -7 -7 -5 -5 -5 -5 -4 ---------- Run | Yrd Mat Min Sub Rec Scr Fac Upp Upp Zhi Pro Machines Disabled 6 | . . . 2 . . 4 . . . . Max in Single Turn 4 | . . . 2 . . 4 . . . . Machines Repaired . | . . . . . . . . . . . Machines Dismantled . | . . . . . . . . . . . Machines Sabotaged . | . . . . . . . . . . . Overloaded Fab Kills . | . . . . . . . . . . . Hacking | -11 -10 -10 -10 -7 -7 -5 -5 -5 -5 -4 --------- Run | Yrd Mat Min Sub Rec Scr Fac Upp Upp Zhi Pro Machines Accessed 31 | . 7 . 1 8 4 1 1 . 9 . Terminals 8 | . 5 . . 3 . . . . . . Fabricators . | . . . . . . . . . . . Repair Stations . | . . . . . . . . . . . Recycling Units 6 | . 2 . . 3 . 1 . . . . Scanalyzers . | . . . . . . . . . . . Garrison Access . | . . . . . . . . . . . Total Hacks 150 | . 22 . 3 42 31 3 1 . 48 . Successful 125 | . 10 . 3 31 31 1 1 . 48 . Failed 25 | . 12 . . 11 . 2 . . . . Catastrophic 3 | . 2 . . 1 . . . . . . Database Lockouts . | . . . . . . . . . . . Manual 22 | . 16 . . 5 . 1 . . . . Terminals 29 | . 19 . . 10 . . . . . . Fabricators . | . . . . . . . . . . . Repair Stations . | . . . . . . . . . . . Recycling Units 13 | . 3 . . 7 . 3 . . . . Scanalyzers . | . . . . . . . . . . . Garrison Access . | . . . . . . . . . . . Terminal Hacks 114 | . 3 . 3 28 31 . 1 . 48 . Record 94 | . . . 3 24 31 . . . 36 . Part Schematic 4 | . . . . . . . . . 4 . Robot Analysis 5 | . 1 . . . . . . . 4 . Prototype ID Bank 4 | . . . . . . . . . 4 . Open Door 1 | . . . . . . . 1 . . . Terminal Index 1 | . 1 . . . . . . . . . Alert Level 1 | . . . . 1 . . . . . . Unreport Threat 1 | . 1 . . . . . . . . . Registered Components 1 | . . . . 1 . . . . . . Zone Layout 1 | . . . . 1 . . . . . . Release Object 1 | . . . . 1 . . . . . . Fabricator Hacks . | . . . . . . . . . . . Repair Station Hacks . | . . . . . . . . . . . Recycling Unit Hacks 2 | . 2 . . . . . . . . . Retrieve Components 2 | . 2 . . . . . . . . . Scanalyzer . | . . . . . . . . . . . Garrison Access Hacks . | . . . . . . . . . . . Unauthorized Hacks 9 | . 5 . . 3 . 1 . . . . Terminals 8 | . 5 . . 3 . . . . . . Botnet 2 | . 1 . . 1 . . . . . . Skim 6 | . 4 . . 2 . . . . . . Fabricators . | . . . . . . . . . . . Repair Stations . | . . . . . . . . . . . Recycling Units 1 | . . . . . . 1 . . . . Fedlink 1 | . . . . . . 1 . . . . Scanalyzers . | . . . . . . . . . . . Garrison Access . | . . . . . . . . . . . Data Cores Recovered 1 | . 1 . . . . . . . . . Used . | . . . . . . . . . . . Hacking Detections 13 | . 6 . . 6 . 1 . . . . Full Trace Events 2 | . 2 . . . . . . . . . Feedback Events . | . . . . . . . . . . . Feedback Blocked . | . . . . . . . . . . . Robot Schematics Acquired . | . . . . . . . . . . . Robots Built . | . . . . . . . . . . . Authchips . | . . . . . . . . . . . Time . | . . . . . . . . . . . Total Robot Build Rating . | . . . . . . . . . . . Part Schematics Acquired 4 | . . . . . . . . . 4 . Parts Built . | . . . . . . . . . . . Authchips . | . . . . . . . . . . . Time . | . . . . . . . . . . . Total Part Build Rating . | . . . . . . . . . . . Parts Repaired . | . . . . . . . . . . . Time . | . . . . . . . . . . . Parts Recycled . | . . . . . . . . . . . Recycled Matter . | . . . . . . . . . . . Retrieved Matter . | . . . . . . . . . . . Retrieved Components 17 | . 17 . . . . . . . . . Parts Scanalyzed . | . . . . . . . . . . . Part Schematics Acquired . | . . . . . . . . . . . Parts Damaged . | . . . . . . . . . . . Bothacking | -11 -10 -10 -10 -7 -7 -5 -5 -5 -5 -4 ------------ Run | Yrd Mat Min Sub Rec Scr Fac Upp Upp Zhi Pro Used RIF Installer . | . . . . . . . . . . . Robots Hacked . | . . . . . . . . . . . Non-combat . | . . . . . . . . . . . Combat . | . . . . . . . . . . . Robot Hacks Applied . | . . . . . . . . . . . Relay Couplers Released . | . . . . . . . . . . . Fabnet Peak Effective % . | . . . . . . . . . . . Robots Rewired . | . . . . . . . . . . . Allies Hacked . | . . . . . . . . . . . Hacks Repelled . | . . . . . . . . . . . Allies | -11 -10 -10 -10 -7 -7 -5 -5 -5 -5 -4 -------- Run | Yrd Mat Min Sub Rec Scr Fac Upp Upp Zhi Pro Total Allies 3 | . . 3 . . . . . . . . Largest Group 2 | . . 2 2 . . . . . . . Highest-Rated Group 43 | . . 39 43 . . . . . . . Highest-Rated Ally 31 | . . 31 31 . . . . . . . Total Orders . | . . . . . . . . . . . Ally Attacks 42 | . . 26 16 . . . . . . . Total Damage 509 | . . 297 212 . . . . . . . Kills 10 | . . 7 3 . . . . . . . Allies Corrupted . | . . . . . . . . . . . Allies Melted . | . . . . . . . . . . . Intel | -11 -10 -10 -10 -7 -7 -5 -5 -5 -5 -4 ------- Run | Yrd Mat Min Sub Rec Scr Fac Upp Upp Zhi Pro Active Infowar (turns) 14067 | 37 2000 1419 1026 1074 6391 1435 226 84 301 74 Optics 2105 | . . . . . . 1420 226 84 301 74 Terrain 805 | . . . . . . 805 . . . . Structural 6915 | . . . . 198 6391 326 . . . . Seismic 5893 | 37 2000 1419 1026 876 . 535 . . . . Robot Analysis Total 5 | . 1 . . . . . . . 4 . Derelict Logs Recovered 7 | . . 1 . . 4 . 2 . . . Drone Launches . | . . . . . . . . . . . Drone Recoveries . | . . . . . . . . . . . Exploration | -11 -10 -10 -10 -7 -7 -5 -5 -5 -5 -4 ------------- Run | Yrd Mat Min Sub Rec Scr Fac Upp Upp Zhi Pro Turns Passed 14689 | 128 2000 1419 1026 1522 6474 1435 226 84 301 74 Spaces Moved 5424 | 61 655 404 296 434 2156 502 400 168 313 35 Core 928 | 4 . . . . 155 40 400 168 161 . Treads 4121 | 57 655 404 296 434 2001 274 . . . . Legs 187 | . . . . . . . . . 152 35 Wheels 162 | . . . . . . 162 . . . . Hover 26 | . . . . . . 26 . . . . Flight . | . . . . . . . . . . . Fastest Speed 40 | 50 160 320 320 340 50 40 50 50 50 120 Average Speed 251 | 152 259 320 321 340 296 233 50 50 83 120 Slowest Speed 840 | 160 320 480 480 340 320 840 50 50 120 120 Overloaded Moves . | . . . . . . . . . . . Propulsion Burnouts . | . . . . . . . . . . . Robots Hopped . | . . . . . . . . . . . Potential Cave-ins . | . . . . . . . . . . . Cave-ins Triggered . | . . . . . . . . . . . Teleports 1 | . . . . . . . . . . 1 Exploration Rate (%) 52 | 4 93 82 24 76 93 13 69 47 63 18 Regions Visited 10 Branch Regions 8 Pre-discovered Areas 8 | . . . . . 5 . . . 3 . Known Exits Taken 6 | . . . 1 . 1 1 1 1 1 . Unknown Exits Taken 4 | 1 1 1 . 1 . . . . . . Scrap Searched 5 | . . 1 1 . 2 . 1 . . . Spaces Dug 24 | . 4 14 . 4 . . 2 . . . Terrain Destroyed 202 | . 22 75 14 18 . 71 2 . . . Melee 2 | . . . . . . . 2 . . . Projectile . | . . . . . . . . . . . AOE 200 | . 22 75 14 18 . 71 . . . . Terrain Rammed . | . . . . . . . . . . . Walls Destroyed . | . . . . . . . . . . . Machines Disabled . | . . . . . . . . . . . Actions | -11 -10 -10 -10 -7 -7 -5 -5 -5 -5 -4 --------- Run | Yrd Mat Min Sub Rec Scr Fac Upp Upp Zhi Pro Total 6023 | 81 801 462 343 464 2274 629 421 167 333 48 Wait 89 | . 23 . 7 14 . 25 20 . . . Move 5414 | 60 654 403 295 433 2155 501 399 167 312 35 Hop . | . . . . . . . . . . . Pick Up 102 | 7 15 4 14 1 52 8 . . 1 . Fast Attach 20 | 7 . . . . 1 3 . . 9 . Attach 42 | . 2 5 1 1 7 24 . . 1 1 Detach 9 | . . . . . 5 4 . . . . Swap 21 | . 6 3 3 4 1 4 . . . . Drop 70 | . 9 . 3 . 53 3 . . 2 . Fire 217 | 7 88 45 20 11 . 46 . . . . Melee 31 | . . . . . . 9 2 . 8 12 Ram . | . . . . . . . . . . . Kick . | . . . . . . . . . . . Crush 8 | . 4 2 . . . 2 . . . . Escape Stasis . | . . . . . . . . . . . Rewire . | . . . . . . . . . . . Trap . | . . . . . . . . . . . Miscellaneous . | . . . . . . . . . . . Route ------- -11/Scrapyard -10/Materials (discovered 5 exits: [*Mat x3] / [*Min x2]) -10/Mines (discovered 2 exits: [*Mat] / *Sub) -10/Subcaves -7/Recycling (discovered 2 exits: *Fac / *Scr) -7/Scraptown (discovered 2 exits: *Fac x2) -5/Factory (discovered 5 exits: Fac x3 / *Upp x2) -5/Upper Caves -5/Upper Caves (discovered 2 exits: *Fac / *Zhi) -5/Zhirov -4/Proximity Caves (discovered 1 exit: Fac) History --------- Turn | Location | Event 64 | -11/Scrapyard | Discovered new exit (range 14) 129 | -11/Scrapyard | Entered Materials 301 | -10/Materials | Build established: Mutant 503 | -10/Materials | Discovered new exit (range 15) 622 | -10/Materials | Discovered new exit (range 9) 1225 | -10/Materials | Discovered new exit (range 5) 1625 | -10/Materials | Discovered new exit (range 9) 1844 | -10/Materials | Discovered new exit (range 14) 2129 | -10/Materials | Entered Mines 2255 | -10/Mines | Excavation squad dispatched 2255 | -10/Mines | A large section of the Mines collapsed 2489 | -10/Mines | Received a Mining Laser from a helpful Derelict 2505 | -10/Mines | Excavation squad dispatched 2730 | -10/Mines | Discovered new exit (range 5) 2949 | -10/Mines | Lost 3 parts (1n2w) 3105 | -10/Mines | A weapon hastily lodged in a ceiling crevice suddenly fell to the ground 3240 | -10/Mines | Learned location of 1 exit from Materials 3294 | -10/Mines | Core integrity fell below 50% 3516 | -10/Mines | Discovered new exit (range 9) 3548 | -10/Mines | Entered Subcaves 3548 | -10/Subcaves | Accompanied by 2 allies 3553 | -10/Subcaves | Led the pair of lost Derelicts to an unsafe place 3589 | -10/Subcaves | Shifting Twisted Machinery released Sub. Power Source 3643 | -10/Subcaves | Shifting Twisted Machinery released Sub. Beam Cannon 4132 | -10/Subcaves | Visited Clippyterm 4141 | -10/Subcaves | Identified exit to Recycling 4530 | -10/Subcaves | Core integrity fell below 20% 4574 | -10/Subcaves | Entered Recycling 5896 | -7/Recycling | Discovered new exit (range 13) 5974 | -7/Recycling | Scanned before Scraplab entrance 6011 | -7/Recycling | Discovered new exit (range 11) 6066 | -7/Recycling | Entered Scraplab 6096 | -7/Recycling | Entered Scraptown 6463 | -7/Scraptown | Learned location of Extension (-6) 6565 | -7/Scraptown | Visited Red Mages 6624 | -7/Scraptown | Found Relay Coupler [Proto] 6711 | -7/Scraptown | Visited Symbiants 6781 | -7/Scraptown | Visited Awakened 6852 | -7/Scraptown | Visited SPCMW 7117 | -7/Scraptown | Heard Great Nut preacher, LISTEN AND RECITE! 7719 | -7/Scraptown | Visited Comm Corps 8045 | -7/Scraptown | Scanned Subdweller tech in exchange for log data 8052 | -7/Scraptown | Learned 8 Research zone layouts 8055 | -7/Scraptown | Learned Research security intel 8061 | -7/Scraptown | Learned location of Warlord (-4) 8106 | -7/Scraptown | Discovered new exit (range 7) 8353 | -7/Scraptown | Visited Shadow of the Wyrm 8404 | -7/Scraptown | Visited Fellowship of the Rings 8513 | -7/Scraptown | Visited UFD Registry 8513 | -7/Scraptown | Registered with UFD as "Arcmind" 8705 | -7/Scraptown | Visited Abandonware Association 8733 | -7/Scraptown | Learned abandonware demo "OVRCLOCK.EXE" 8749 | -7/Scraptown | Learned abandonware demo "KABOOM.EXE" 8829 | -7/Scraptown | Visited Derelict Rescue Squad 8849 | -7/Scraptown | Found DRS Beacon 8936 | -7/Scraptown | Visited Junk Repository 9192 | -7/Scraptown | Visited Chapter 10 9340 | -7/Scraptown | Visited Scrap Suit Storage 9464 | -7/Scraptown | Visited Cartography Club 10635 | -7/Scraptown | Learned location of Storage (-7) 10635 | -7/Scraptown | Learned location of Zion (-7) 10635 | -7/Scraptown | Learned location of Quarantine (-2) 10635 | -7/Scraptown | Learned 12 Materials zone layouts 10635 | -7/Scraptown | Learned 20 Factory zone layouts 10635 | -7/Scraptown | Learned 16 Research zone layouts 10635 | -7/Scraptown | Learned 4 Mines zone layouts 10635 | -7/Scraptown | Learned 16 Lower Caves zone layouts 10635 | -7/Scraptown | Learned 12 Upper Caves zone layouts 10635 | -7/Scraptown | Learned 20 Upper Caves zone layouts 10635 | -7/Scraptown | Learned 20 Proximity Caves zone layouts 10635 | -7/Scraptown | Learned 4 Armory zone layouts 10635 | -7/Scraptown | Learned Factory emergency access door positions 10635 | -7/Scraptown | Learned location of 1 exit from Factory 10635 | -7/Scraptown | Learned location of 2 exits from Research 10635 | -7/Scraptown | Learned location of 1 exit from Upper Caves 10635 | -7/Scraptown | Identified exit to Factory 10966 | -7/Scraptown | Visited Curators Association 11075 | -7/Scraptown | Visited Observation Area 12374 | -7/Scraptown | Met Optimus 12374 | -7/Scraptown | Accepted into 0bPrime 12570 | -7/Scraptown | Entered Factory 12570 | -5/Factory | Evolved 10 slots: Propulsion x3, Utility x7 12571 | -5/Factory | Identified exit to Upper Caves 12572 | -5/Factory | Identified exit to Factory 12885 | -5/Factory | Build established: Scavenger-Mutant 12944 | -5/Factory | Lost 3 parts (2n1u) 13123 | -5/Factory | Lost 3 parts (1p1u1w) 13259 | -5/Factory | Loaded intel: 8 recycling unit locations 13364 | -5/Factory | Garrison activated, responded to threat 13425 | -5/Factory | Lost 6 parts (1n2u3w) 13435 | -5/Factory | Build established: Hacker-Mutant 13854 | -5/Factory | Lost 4 parts (2n2w) 13945 | -5/Factory | Core integrity fell below 50% 13972 | -5/Factory | Lost 4 parts (2n2w) 14005 | -5/Factory | Entered Upper Caves 14006 | -5/Upper Caves | Identified exit to Upper Caves 14141 | -5/Upper Caves | Learned Factory garrison access intel 14199 | -5/Upper Caves | Spotted B-75 Beast 14208 | -5/Upper Caves | Core integrity fell below 20% 14220 | -5/Upper Caves | Learned 8 Factory zone layouts 14231 | -5/Upper Caves | Entered another Upper Caves area 14231 | -5/Upper Caves | Discovered exit to Factory (range 13) 14232 | -5/Upper Caves | Discovered new exit (range 140) 14261 | -5/Upper Caves | Attracted the attention of an 0b10 checkpoint 14290 | -5/Upper Caves | Encountered a Warlord checkpoint 14311 | -5/Upper Caves | Identified exit to Zhirov 14315 | -5/Upper Caves | Entered Zhirov 14315 | -5/Zhirov | Discovered new exit (range 3) 14370 | -5/Zhirov | Learned location of Testing (-3) 14370 | -5/Zhirov | Learned location of Command (-1) 14502 | -5/Zhirov | Found Alien Artifact 14502 | -5/Zhirov | Identified Integrated Reactor 14502 | -5/Zhirov | Installed Integrated Reactor, increased core energy generation (+10) 14516 | -5/Zhirov | Found Alien Artifact 14559 | -5/Zhirov | Identified exit to Proximity Caves 14616 | -5/Zhirov | Entered Proximity Caves 14629 | -4/Proximity Caves | Identified Transdimensional Reconstructor 14629 | -4/Proximity Caves | Warped through subspace 14690 | -4/Proximity Caves | Destroyed by S-27 Virus with Autogun Last Messages --------------- 14619_ Penetrated by Slug. 14622_ Slug penetrates Wall. 14624_ Penetrated by Slug. 14624_ Slug penetrates Wall. 14625_ Slug penetrates H-77 Assassin. 14625_ Penetrated by Slug. 14625_ Slug penetrates Wall. 14626_ System corrupted: Heat flow error (+134). 14629_ Slug penetrates Wall. 14629_ Penetrated by Slug. 14629_ Identified Transdimensional Reconstructor. 14629_ Warped through subspace. [Achievement: Subspace Traveler] 14671_ Hacking Suite destroyed. 14677_ Adv. Cooling System destroyed. 14679_ S-27 Virus destroyed. 14680_ Sub. Machine Gun destroyed. 14690_ S-27 Virus destroyed. [Achievement: Back For More] Map ----- +----------------------------------------------------+ | ???# ## #??# | | ##?## ## ##??# | | #### " """ ### ####???# | | ## """"""" ####?# #?????# | | """"""" ##????## #?????# # | | ### " """ #####???####?????# # | | ??## ## ############## # | | ???#### # ### ## # | | ####??# #### ### # | | #??# #?## ### ####### | | ##??## ### ## #?????? | | #????## ### ##?????? | | #?????## ### #?# ### ### #??????? | | #####??## ##?##### #?######?## #?????## | | ##?## ##????## ##???????## ####??# | | ### ##?????# ##?????## #?## | | ## ##?????## ##???## #### | | ## ## ##??????# ##?## ### | | # ######??????## ### ## | | ## #?????## # ## | | ?## #?????# ## ### # ## | | ??### #### #?????## ## ## ##### # | | ????## #??# #??????## ## #??# ## | | ?????## ##?## #???????# *= ## ##??# ##? | | ?????######## ##########%ss## #### #?? | | ?????# ""##" @% #?? | | ?????#" " " ### | | ?????#" ######### ### ## | | ?????#"" "" ####???????## ## ## | | ?????#"""##" ##???????????## ## ## | | ?????####?# ??????????????# ## ##### #? | | ??????????###??????????????############ ##??# #? | | ??????????????????????????????????????# #??# ## | | ???????????????????????????????????#### ##?# # | | ??????????????????????????????????## ## #### # | | ??????????????????????????????????# ## ### # | | ??????????????????????????????????# ## ## | | ??????????????????????????????????# ## | | ??????????????????????????????????## | | ???????????????????????????????????# | | ??????????????????????????????????## | | ??????????????????????????????????# ## | | ??????????????????????????????????# #### # | | ??????????????????????????????????## ### # | | ???????????????????????????????????### #?# | | ?????????????????????????????????????#### #?# | | ????????????????????????????????????????# #?## | | ????????????????????????????????????????# #??## | | ????????????????????????????????????????# ##??# | | ???????????????????????????????????????## ##?## | +----------------------------------------------------+ Best States ------------- Heat Dissipation 71 Energy Generation 35 Energy Capacity 340 Matter Stores 300 Matter Capacity 300 Sight Range 22 Terrain Scan Range 16 Terrain Scan Density 10 Armor Coverage 375 Core Shielding 40 Evasion (%) 55 Recoil Reduction 4 Offensive Hacking 10 Defensive Hacking 11 Item Schematics ----------------- Assault Drone Bay | -5/Zhirov | Free Exp. Heat Sink | -5/Zhirov | Free Exp. Optical Array | -5/Zhirov | Free Imp. Arc Thrower | -5/Zhirov | Free Robot Schematics ------------------ None Fabricated ------------ Nothing Repaired ---------- Nothing Alien Tech Used ----------------- Integrated Reactor Transdimensional Reconstructor Achievements -------------- Back For More Brute Force Subspace Traveler Challenges ------------ None Game ------ Seed AutogunSuperdenseFlakker Manual? 0 Play Time 01:08:31 Cumulative 55.2 hours Start 2025.07.01 @ 20:38:11 End 2025.07.01 @ 21:57:21 Sessions 1 Manual Loads 0 Difficulty Rogue Special Mode None Game No. 50 Rogue 50 Adventurer 0 Explorer 0 Win Type - Total 1 Types 1/0/0/0/0/0/0/0/0/0 Lore% 38 Gallery% 34 Achievement% 36 Wizard Run 0 Options --------- Layout 1 ASCII 0 Keyboard 1 Movement Arrows Keybinds 0 Fullscreen 1 Font 24/Smallcaps Map View 50x40 Zoom Use 0% Tactical HUD 1 Map Filters NONE Filters NONE Steam 1 RUN: 9c01f088-c21a-4bd2-a6ef-203d58533c74